[Event "Early-Titled-Tuesday-Blitz-February-06-2024"]
[Site "Chess.com"]
[Date "2024.02.06"]
[Round "4"]
[White "noblerone"]
[Black "Sajith_Peiris"]
[Result "1-0"]
[WhiteElo "2464"]
[BlackElo "2249"]
[TimeControl "180+1"]
[EndTime "8:39:10 PST"]
[Termination "noblerone won by resignation"]

1. d4 {[%clk 0:03:00.9]} 1... Nf6 {[%clk 0:02:58.2]} 2. c4 {[%clk 0:03:01.3]}
2... e6 {[%clk 0:02:57.3]} 3. Nc3 {[%clk 0:03:02.2]} 3... d5 {[%clk 0:02:57]} 4.
cxd5 {[%clk 0:03:00.3]} 4... exd5 {[%clk 0:02:56.1]} 5. Bg5 {[%clk 0:03:00.6]}
5... Be7 {[%clk 0:02:53.1]} 6. e3 {[%clk 0:02:58.2]} 6... O-O {[%clk 0:02:51.6]}
7. Bd3 {[%clk 0:02:58.8]} 7... c6 {[%clk 0:02:50.1]} 8. Nf3 {[%clk 0:02:52.4]}
8... h6 {[%clk 0:02:48.6]} 9. Bh4 {[%clk 0:02:51.5]} 9... Nbd7 {[%clk
0:02:46.4]} 10. O-O {[%clk 0:02:36.4]} 10... Re8 {[%clk 0:02:44.7]} 11. Qb1
{[%clk 0:02:34]} 11... Nf8 {[%clk 0:02:40.8]} 12. b4 {[%clk 0:02:33.6]} 12... a6
{[%clk 0:02:35.8]} 13. a4 {[%clk 0:02:33.2]} 13... Ne4 {[%clk 0:02:22.8]} 14.
Bxe7 {[%clk 0:02:23.6]} 14... Qxe7 {[%clk 0:01:59.8]} 15. Bxe4 {[%clk 0:02:14]}
15... dxe4 {[%clk 0:01:59.3]} 16. Nd2 {[%clk 0:02:10.3]} 16... f5 {[%clk
0:01:48.4]} 17. b5 {[%clk 0:01:45.5]} 17... Be6 {[%clk 0:01:35.3]} 18. bxc6
{[%clk 0:01:28.6]} 18... bxc6 {[%clk 0:01:35.1]} 19. Qb6 {[%clk 0:01:28.2]}
19... Reb8 {[%clk 0:01:26.1]} 20. Qa5 {[%clk 0:01:17.4]} 20... Nd7 {[%clk
0:01:17.1]} 21. Rab1 {[%clk 0:01:13]} 21... Qa3 {[%clk 0:00:39.5]} 22. Rxb8+
{[%clk 0:00:52.3]} 22... Rxb8 {[%clk 0:00:38.2]} 23. Ndb1 {[%clk 0:00:48.8]}
23... Qb2 {[%clk 0:00:32.6]} 24. Qxa6 {[%clk 0:00:40.1]} 24... Ba2 {[%clk
0:00:30.7]} 25. Qxc6 {[%clk 0:00:27.8]} 25... Bxb1 {[%clk 0:00:27.9]} 26. Nxb1
{[%clk 0:00:21.6]} 26... Qxb1 {[%clk 0:00:25.9]} 27. Qxd7 {[%clk 0:00:20.9]}
27... Qd3 {[%clk 0:00:20.6]} 28. g3 {[%clk 0:00:15.8]} 28... Rb2 {[%clk
0:00:17.4]} 29. Qxf5 {[%clk 0:00:15.2]} 29... Ra2 {[%clk 0:00:13.7]} 30. Qe6+
{[%clk 0:00:14.7]} 1-0

[Event "Early-Titled-Tuesday-Blitz-February-06-2024"]
[Site "Chess.com"]
[Date "2024.02.06"]
[Round "4"]
[White "WiktoriaPOL"]
[Black "chess_blitz00"]
[Result "0-1"]
[WhiteElo "2267"]
[BlackElo "2482"]
[TimeControl "180+1"]
[EndTime "8:39:12 PST"]
[Termination "chess_blitz00 won on time"]

1. c4 {[%clk 0:02:56]} 1... g6 {[%clk 0:02:59.6]} 2. Nc3 {[%clk 0:02:55.1]} 2...
Bg7 {[%clk 0:03:00.5]} 3. g3 {[%clk 0:02:55.4]} 3... Nc6 {[%clk 0:02:58.2]} 4.
Bg2 {[%clk 0:02:54.6]} 4... f5 {[%clk 0:02:58.1]} 5. e3 {[%clk 0:02:53.1]} 5...
Nf6 {[%clk 0:02:58.7]} 6. d4 {[%clk 0:02:50.9]} 6... O-O {[%clk 0:02:59.3]} 7.
Nf3 {[%clk 0:02:43.3]} 7... d6 {[%clk 0:02:54]} 8. d5 {[%clk 0:02:41.1]} 8...
Ne5 {[%clk 0:02:52.2]} 9. Nxe5 {[%clk 0:02:41.4]} 9... dxe5 {[%clk 0:02:53.1]}
10. Qb3 {[%clk 0:02:41.8]} 10... Kh8 {[%clk 0:02:37.5]} 11. O-O {[%clk
0:02:38.5]} 11... e4 {[%clk 0:02:31.5]} 12. c5 {[%clk 0:02:36.6]} 12... e6
{[%clk 0:02:16.5]} 13. dxe6 {[%clk 0:02:31.1]} 13... Qe7 {[%clk 0:02:16.9]} 14.
Rd1 {[%clk 0:02:10.3]} 14... Bxe6 {[%clk 0:02:14.1]} 15. Qxb7 {[%clk 0:02:08.9]}
15... Qxc5 {[%clk 0:01:56.8]} 16. Na4 {[%clk 0:01:49.3]} 16... Qc2 {[%clk
0:01:47.7]} 17. Nc3 {[%clk 0:01:41.5]} 17... Rad8 {[%clk 0:01:34.6]} 18. Rxd8
{[%clk 0:01:26]} 18... Rxd8 {[%clk 0:01:35.5]} 19. Qxc7 {[%clk 0:01:23.5]} 19...
Rd1+ {[%clk 0:01:35.2]} 20. Bf1 {[%clk 0:01:19]} 20... Rxc1 {[%clk 0:01:05.2]}
21. Qd8+ {[%clk 0:01:12.5]} 21... Bg8 {[%clk 0:00:59.9]} 22. Rxc1 {[%clk
0:01:09.8]} 22... Qxc1 {[%clk 0:01:00.8]} 23. Qb8 {[%clk 0:00:52.3]} 23... Ng4
{[%clk 0:00:46.2]} 24. h3 {[%clk 0:00:28.5]} 24... Nh2 {[%clk 0:00:41.8]} 25.
Kxh2 {[%clk 0:00:25]} 25... Qxf1 {[%clk 0:00:41.7]} 26. Qf4 {[%clk 0:00:24.1]}
26... h5 {[%clk 0:00:26.5]} 27. h4 {[%clk 0:00:23]} 27... Kh7 {[%clk 0:00:25.1]}
28. a3 {[%clk 0:00:10.2]} 28... Bc4 {[%clk 0:00:18.3]} 29. Na4 {[%clk
0:00:05.1]} 29... Be2 {[%clk 0:00:16.5]} 30. Nc5 {[%clk 0:00:01.1]} 30... Bf3
{[%clk 0:00:16.1]} 0-1

[Event "Early-Titled-Tuesday-Blitz-February-06-2024"]
[Site "Chess.com"]
[Date "2024.02.06"]
[Round "4"]
[White "HATilay"]
[Black "yuriydovzik"]
[Result "1-0"]
[WhiteElo "2509"]
[BlackElo "2225"]
[TimeControl "180+1"]
[EndTime "8:39:12 PST"]
[Termination "HATilay won on time"]

1. d4 {[%clk 0:02:52.7]} 1... Nf6 {[%clk 0:02:56.6]} 2. c4 {[%clk 0:02:50.7]}
2... e6 {[%clk 0:02:53.8]} 3. Nc3 {[%clk 0:02:48.3]} 3... b6 {[%clk 0:02:51.2]}
4. Nf3 {[%clk 0:02:40.2]} 4... Bb7 {[%clk 0:02:49.9]} 5. g3 {[%clk 0:02:39]}
5... Bxf3 {[%clk 0:02:38.5]} 6. exf3 {[%clk 0:02:37.8]} 6... c6 {[%clk
0:02:33.8]} 7. Bg2 {[%clk 0:02:37.8]} 7... d5 {[%clk 0:02:31.3]} 8. cxd5 {[%clk
0:02:35.5]} 8... exd5 {[%clk 0:02:27.5]} 9. O-O {[%clk 0:02:35.9]} 9... Be7
{[%clk 0:02:25.8]} 10. Re1 {[%clk 0:02:35.9]} 10... O-O {[%clk 0:02:24.9]} 11.
h4 {[%clk 0:02:24.4]} 11... h6 {[%clk 0:02:17.9]} 12. Qd3 {[%clk 0:02:18.8]}
12... Nbd7 {[%clk 0:02:10.3]} 13. Bf4 {[%clk 0:02:19]} 13... Re8 {[%clk
0:02:04.5]} 14. Rac1 {[%clk 0:02:09.7]} 14... Nh5 {[%clk 0:01:52.7]} 15. Bd2
{[%clk 0:02:04.4]} 15... Bd6 {[%clk 0:01:50.6]} 16. Qf5 {[%clk 0:02:04.5]} 16...
Nhf6 {[%clk 0:01:40.9]} 17. Bh3 {[%clk 0:01:56.8]} 17... Nf8 {[%clk 0:01:34.1]}
18. Kg2 {[%clk 0:01:52.1]} 18... N8h7 {[%clk 0:01:12.2]} 19. Rxe8+ {[%clk
0:01:34.8]} 19... Qxe8 {[%clk 0:01:11.5]} 20. Re1 {[%clk 0:01:35.5]} 20... Qd8
{[%clk 0:01:09]} 21. Ne2 {[%clk 0:01:25.8]} 21... Qc7 {[%clk 0:00:59]} 22. Nf4
{[%clk 0:01:22.9]} 22... Re8 {[%clk 0:00:48]} 23. Rxe8+ {[%clk 0:01:10.8]} 23...
Nxe8 {[%clk 0:00:46.6]} 24. Nh5 {[%clk 0:01:03.9]} 24... g6 {[%clk 0:00:38.6]}
25. Qd7 {[%clk 0:00:59.3]} 25... Qxd7 {[%clk 0:00:28]} 26. Bxd7 {[%clk 0:00:59]}
26... Nc7 {[%clk 0:00:24.2]} 27. Nf4 {[%clk 0:00:55]} 27... c5 {[%clk 0:00:19]}
28. Nd3 {[%clk 0:00:38.8]} 28... Nf6 {[%clk 0:00:14.6]} 29. Bxh6 {[%clk
0:00:38.1]} 29... Nxd7 {[%clk 0:00:13.4]} 30. Be3 {[%clk 0:00:35.9]} 30... c4
{[%clk 0:00:12]} 31. Ne1 {[%clk 0:00:35.3]} 31... Ne6 {[%clk 0:00:10.1]} 32. Nc2
{[%clk 0:00:35.6]} 32... f5 {[%clk 0:00:09]} 33. f4 {[%clk 0:00:35.7]} 33... Nf6
{[%clk 0:00:08]} 34. f3 {[%clk 0:00:35.8]} 34... Nd7 {[%clk 0:00:07.1]} 35. Kf2
{[%clk 0:00:36.3]} 35... b5 {[%clk 0:00:07.4]} 36. a3 {[%clk 0:00:35.5]} 36...
a5 {[%clk 0:00:07]} 37. Bd2 {[%clk 0:00:36.2]} 37... a4 {[%clk 0:00:03]} 38. Ke3
{[%clk 0:00:35.5]} 38... Kf7 {[%clk 0:00:02.3]} 39. Bb4 {[%clk 0:00:36.2]} 1-0

[Event "Early-Titled-Tuesday-Blitz-February-06-2024"]
[Site "Chess.com"]
[Date "2024.02.06"]
[Round "4"]
[White "casparov00000"]
[Black "rhungaski"]
[Result "1-0"]
[WhiteElo "2331"]
[BlackElo "2485"]
[TimeControl "180+1"]
[EndTime "8:39:13 PST"]
[Termination "casparov00000 won on time"]

1. e4 {[%clk 0:03:00.4]} 1... g6 {[%clk 0:02:59.8]} 2. d4 {[%clk 0:03:00.5]}
2... Bg7 {[%clk 0:03:00.1]} 3. Nc3 {[%clk 0:03:00.5]} 3... d6 {[%clk 0:03:00.1]}
4. h3 {[%clk 0:03:00.3]} 4... a6 {[%clk 0:02:59.9]} 5. Nf3 {[%clk 0:03:00.8]}
5... b5 {[%clk 0:02:59.4]} 6. a3 {[%clk 0:03:01]} 6... Bb7 {[%clk 0:02:58]} 7.
Bd3 {[%clk 0:03:00.8]} 7... Nd7 {[%clk 0:02:58]} 8. O-O {[%clk 0:03:01]} 8... c5
{[%clk 0:02:58.2]} 9. d5 {[%clk 0:02:53.4]} 9... Ngf6 {[%clk 0:02:39.5]} 10. Bg5
{[%clk 0:02:52.6]} 10... O-O {[%clk 0:02:39.3]} 11. Qd2 {[%clk 0:02:50.3]} 11...
Nb6 {[%clk 0:02:32.6]} 12. Bh6 {[%clk 0:02:48]} 12... Nfd7 {[%clk 0:02:18.5]}
13. Bxg7 {[%clk 0:02:47.8]} 13... Kxg7 {[%clk 0:02:19.4]} 14. Nh4 {[%clk
0:02:37.4]} 14... e6 {[%clk 0:02:14.7]} 15. dxe6 {[%clk 0:02:37.2]} 15... fxe6
{[%clk 0:02:15.4]} 16. g3 {[%clk 0:02:31.7]} 16... g5 {[%clk 0:01:38.7]} 17. Ng2
{[%clk 0:02:31.4]} 17... Ne5 {[%clk 0:01:39.5]} 18. f4 {[%clk 0:02:30]} 18...
Nec4 {[%clk 0:01:36.6]} 19. Qe2 {[%clk 0:02:21.9]} 19... Qf6 {[%clk 0:01:28.5]}
20. b3 {[%clk 0:02:11.1]} 20... Qxc3 {[%clk 0:01:26.9]} 21. bxc4 {[%clk
0:02:11.2]} 21... bxc4 {[%clk 0:01:27.6]} 22. Rab1 {[%clk 0:02:02.4]} 22... cxd3
{[%clk 0:01:27.8]} 23. cxd3 {[%clk 0:02:02.5]} 23... Qd4+ {[%clk 0:01:00.8]} 24.
Kh1 {[%clk 0:02:01.1]} 24... c4 {[%clk 0:00:56.4]} 25. Qg4 {[%clk 0:01:49.6]}
25... cxd3 {[%clk 0:00:49.5]} 26. Qxg5+ {[%clk 0:01:47.5]} 26... Kh8 {[%clk
0:00:49]} 27. Rb4 {[%clk 0:01:34.5]} 27... Qc5 {[%clk 0:00:48.6]} 28. Qe7 {[%clk
0:01:32]} 28... Bc6 {[%clk 0:00:23.5]} 29. Nh4 {[%clk 0:01:25.3]} 29... Rae8
{[%clk 0:00:20.5]} 30. Qc7 {[%clk 0:01:25.5]} 30... Nc4 {[%clk 0:00:20.8]} 31.
Kh2 {[%clk 0:01:18.6]} 31... Bxe4 {[%clk 0:00:20.3]} 32. Qxc5 {[%clk 0:01:14.4]}
32... dxc5 {[%clk 0:00:21.2]} 33. Rxc4 {[%clk 0:01:14.9]} 33... Bc6 {[%clk
0:00:13]} 34. Rxc5 {[%clk 0:01:14.7]} 34... Ba4 {[%clk 0:00:12.2]} 35. Nf3
{[%clk 0:01:10.9]} 35... Rc8 {[%clk 0:00:12.7]} 36. Rxc8 {[%clk 0:01:05.9]}
36... Rxc8 {[%clk 0:00:13.6]} 37. Rf2 {[%clk 0:01:06.5]} 37... Rc1 {[%clk
0:00:11.4]} 38. Rd2 {[%clk 0:01:05.9]} 38... Bc2 {[%clk 0:00:11.6]} 39. Nd4
{[%clk 0:01:04.4]} 39... Ra1 {[%clk 0:00:03]} 40. Nxe6 {[%clk 0:01:03.5]} 40...
Rxa3 {[%clk 0:00:02.7]} 41. Nc5 {[%clk 0:00:59.4]} 41... a5 {[%clk 0:00:02.8]}
42. f5 {[%clk 0:00:59.3]} 42... Rc3 {[%clk 0:00:02.7]} 43. Ne4 {[%clk 0:00:59]}
43... Rc4 {[%clk 0:00:01.9]} 44. Nd6 {[%clk 0:00:57.3]} 1-0

[Event "Early-Titled-Tuesday-Blitz-February-06-2024"]
[Site "Chess.com"]
[Date "2024.02.06"]
[Round "4"]
[White "yobdc"]
[Black "Janosik"]
[Result "0-1"]
[WhiteElo "2584"]
[BlackElo "2863"]
[TimeControl "180+1"]
[EndTime "8:39:14 PST"]
[Termination "Janosik won by checkmate"]

1. c4 {[%clk 0:02:57.5]} 1... e6 {[%clk 0:02:59.7]} 2. g4 {[%clk 0:02:56.7]}
2... d5 {[%clk 0:03:00.6]} 3. h3 {[%clk 0:02:52.5]} 3... c6 {[%clk 0:02:59.5]}
4. Bg2 {[%clk 0:02:50.5]} 4... dxc4 {[%clk 0:02:58.8]} 5. Nf3 {[%clk 0:02:50.8]}
5... b5 {[%clk 0:02:59.3]} 6. b3 {[%clk 0:02:44.5]} 6... cxb3 {[%clk 0:02:58.9]}
7. axb3 {[%clk 0:02:45.4]} 7... Bb7 {[%clk 0:02:58.9]} 8. Bb2 {[%clk 0:02:45.8]}
8... Nf6 {[%clk 0:02:59.1]} 9. Nc3 {[%clk 0:02:42.1]} 9... Be7 {[%clk
0:02:59.5]} 10. Qc2 {[%clk 0:02:40.2]} 10... a6 {[%clk 0:02:59.3]} 11. d4 {[%clk
0:02:25.7]} 11... O-O {[%clk 0:02:52.6]} 12. O-O {[%clk 0:02:21.6]} 12... Nbd7
{[%clk 0:02:47.6]} 13. Rfd1 {[%clk 0:02:21]} 13... Nd5 {[%clk 0:02:44.3]} 14. e3
{[%clk 0:02:10.2]} 14... Qb6 {[%clk 0:02:40.2]} 15. Ne4 {[%clk 0:01:51.2]} 15...
Rfd8 {[%clk 0:02:32.4]} 16. Rac1 {[%clk 0:01:34.6]} 16... Rac8 {[%clk
0:02:32.1]} 17. Ne5 {[%clk 0:01:34.4]} 17... Nxe5 {[%clk 0:02:20]} 18. dxe5
{[%clk 0:01:35.3]} 18... c5 {[%clk 0:02:20.7]} 19. Qe2 {[%clk 0:01:28.7]} 19...
a5 {[%clk 0:01:57.2]} 20. g5 {[%clk 0:01:28.6]} 20... Kh8 {[%clk 0:01:32.4]} 21.
Qh5 {[%clk 0:01:27.2]} 21... Rf8 {[%clk 0:01:29]} 22. Nf6 {[%clk 0:01:21.4]}
22... Bxf6 {[%clk 0:00:40.8]} 23. exf6 {[%clk 0:01:21.6]} 23... g6 {[%clk
0:00:40.8]} 24. Qh6 {[%clk 0:01:22]} 24... Rg8 {[%clk 0:00:41.2]} 25. e4 {[%clk
0:00:48.2]} 25... Nf4 {[%clk 0:00:20.6]} 26. Rd7 {[%clk 0:00:47.9]} 26... Rcf8
{[%clk 0:00:17.3]} 27. Qg7+ {[%clk 0:00:33.5]} 27... Rxg7 {[%clk 0:00:17.8]} 28.
fxg7+ {[%clk 0:00:34.4]} 28... Kg8 {[%clk 0:00:18.5]} 29. gxf8=Q+ {[%clk
0:00:33.8]} 29... Kxf8 {[%clk 0:00:19.4]} 30. Rcd1 {[%clk 0:00:31.8]} 30... Ne2+
{[%clk 0:00:11.4]} 31. Kf1 {[%clk 0:00:21.2]} 31... Nd4 {[%clk 0:00:12.3]} 32.
Bxd4 {[%clk 0:00:13.2]} 32... cxd4 {[%clk 0:00:13.2]} 33. R1xd4 {[%clk
0:00:13.7]} 33... Bc6 {[%clk 0:00:13.6]} 34. Rd8+ {[%clk 0:00:13.8]} 34... Kg7
{[%clk 0:00:13.6]} 35. Rc8 {[%clk 0:00:10.8]} 35... Qxd4 {[%clk 0:00:12.6]} 36.
Rxc6 {[%clk 0:00:10.5]} 36... Qd1# {[%clk 0:00:12.7]} 0-1

[Event "Early-Titled-Tuesday-Blitz-February-06-2024"]
[Site "Chess.com"]
[Date "2024.02.06"]
[Round "4"]
[White "Manukyan_Artak"]
[Black "Khromkin"]
[Result "1-0"]
[WhiteElo "2488"]
[BlackElo "2313"]
[TimeControl "180+1"]
[EndTime "8:39:14 PST"]
[Termination "Manukyan_Artak won on time"]

1. e4 {[%clk 0:02:58.2]} 1... c5 {[%clk 0:02:59.2]} 2. Nf3 {[%clk 0:02:57.8]}
2... Nc6 {[%clk 0:02:59.7]} 3. c3 {[%clk 0:02:57.7]} 3... d5 {[%clk 0:02:59.2]}
4. exd5 {[%clk 0:02:57.5]} 4... Qxd5 {[%clk 0:02:59.6]} 5. d4 {[%clk 0:02:56.8]}
5... Bg4 {[%clk 0:02:59.9]} 6. Be2 {[%clk 0:02:56.2]} 6... cxd4 {[%clk
0:02:59.2]} 7. cxd4 {[%clk 0:02:55.9]} 7... e6 {[%clk 0:02:59.7]} 8. Nc3 {[%clk
0:02:56]} 8... Qa5 {[%clk 0:03:00.3]} 9. Bd2 {[%clk 0:02:55.9]} 9... Rd8 {[%clk
0:02:55.4]} 10. Qb3 {[%clk 0:02:48.6]} 10... Qb4 {[%clk 0:02:54.6]} 11. Nb5
{[%clk 0:02:24.2]} 11... Qxb3 {[%clk 0:02:49]} 12. axb3 {[%clk 0:02:25.1]} 12...
a6 {[%clk 0:02:46.3]} 13. d5 {[%clk 0:02:18.5]} 13... exd5 {[%clk 0:02:38.9]}
14. Nc7+ {[%clk 0:02:13.8]} 14... Ke7 {[%clk 0:02:23]} 15. h3 {[%clk 0:02:12.2]}
15... Bh5 {[%clk 0:02:12.2]} 16. O-O-O {[%clk 0:02:07.8]} 16... Nf6 {[%clk
0:01:39.5]} 17. Bg5 {[%clk 0:01:55]} 17... d4 {[%clk 0:01:08.9]} 18. Nxd4 {[%clk
0:01:33.1]} 18... Nxd4 {[%clk 0:01:02.7]} 19. Bxh5 {[%clk 0:01:31]} 19... Rc8
{[%clk 0:00:56.2]} 20. Rxd4 {[%clk 0:01:26.9]} 20... Rxc7+ {[%clk 0:00:56.6]}
21. Kb1 {[%clk 0:01:26.9]} 21... Ke8 {[%clk 0:00:49.6]} 22. Bf3 {[%clk
0:01:21.5]} 22... Be7 {[%clk 0:00:44.6]} 23. Re1 {[%clk 0:01:13.5]} 23... h6
{[%clk 0:00:42.6]} 24. Bf4 {[%clk 0:01:04.9]} 24... Rd7 {[%clk 0:00:42.8]} 25.
Rc4 {[%clk 0:01:03.6]} 25... g5 {[%clk 0:00:31]} 26. Be5 {[%clk 0:00:57.1]}
26... Kf8 {[%clk 0:00:25.1]} 27. Bc3 {[%clk 0:00:50.8]} 27... Kg7 {[%clk
0:00:20.2]} 28. b4 {[%clk 0:00:45.7]} 28... Rhd8 {[%clk 0:00:18.1]} 29. h4
{[%clk 0:00:36.2]} 29... Kg6 {[%clk 0:00:17.9]} 30. g3 {[%clk 0:00:26.2]} 30...
gxh4 {[%clk 0:00:11]} 31. Rxh4 {[%clk 0:00:25.5]} 31... Nh7 {[%clk 0:00:06.8]}
32. Bh5+ {[%clk 0:00:22]} 1-0

[Event "Early-Titled-Tuesday-Blitz-February-06-2024"]
[Site "Chess.com"]
[Date "2024.02.06"]
[Round "4"]
[White "ilya2700"]
[Black "goodwilll"]
[Result "0-1"]
[WhiteElo "2316"]
[BlackElo "2501"]
[TimeControl "180+1"]
[EndTime "8:39:16 PST"]
[Termination "goodwilll won by checkmate"]

1. e4 {[%clk 0:01:25.1]} 1... c6 {[%clk 0:02:58.5]} 2. d4 {[%clk 0:01:25.3]}
2... d5 {[%clk 0:02:58.6]} 3. exd5 {[%clk 0:01:26.2]} 3... cxd5 {[%clk
0:02:59.4]} 4. Bd3 {[%clk 0:01:26.2]} 4... Nc6 {[%clk 0:02:59.1]} 5. c3 {[%clk
0:01:26.3]} 5... g6 {[%clk 0:02:59.1]} 6. Nf3 {[%clk 0:01:26.5]} 6... Bg7 {[%clk
0:02:59.2]} 7. Bf4 {[%clk 0:01:27.2]} 7... Nh6 {[%clk 0:02:58.9]} 8. O-O {[%clk
0:01:27.2]} 8... f6 {[%clk 0:02:56.9]} 9. Re1 {[%clk 0:01:27]} 9... O-O {[%clk
0:02:56.4]} 10. c4 {[%clk 0:01:26]} 10... Nf7 {[%clk 0:02:54.6]} 11. Nc3 {[%clk
0:01:25.9]} 11... Nb4 {[%clk 0:02:43.8]} 12. Nxd5 {[%clk 0:01:19.4]} 12... Nxd5
{[%clk 0:02:41.4]} 13. cxd5 {[%clk 0:01:20.3]} 13... Bg4 {[%clk 0:02:18.6]} 14.
b3 {[%clk 0:01:14.8]} 14... a6 {[%clk 0:02:05.2]} 15. h3 {[%clk 0:01:11.6]}
15... Bd7 {[%clk 0:01:50.7]} 16. Rc1 {[%clk 0:01:10.5]} 16... Rc8 {[%clk
0:01:49.2]} 17. Rxc8 {[%clk 0:01:08.5]} 17... Bxc8 {[%clk 0:01:48]} 18. Qc2
{[%clk 0:01:08]} 18... Nd6 {[%clk 0:01:45.8]} 19. Nd2 {[%clk 0:01:04.4]} 19...
Nf5 {[%clk 0:01:39.1]} 20. Qc3 {[%clk 0:01:00.5]} 20... b5 {[%clk 0:01:34.2]}
21. a3 {[%clk 0:01:00.3]} 21... Bb7 {[%clk 0:01:31.6]} 22. Bxf5 {[%clk
0:00:51.1]} 22... gxf5 {[%clk 0:01:32.5]} 23. Qg3 {[%clk 0:00:50]} 23... Bxd5
{[%clk 0:01:25.2]} 24. b4 {[%clk 0:00:47.1]} 24... Kh8 {[%clk 0:01:21.5]} 25.
Bc7 {[%clk 0:00:46.4]} 25... Qd7 {[%clk 0:01:19.3]} 26. Bb6 {[%clk 0:00:45.6]}
26... e5 {[%clk 0:01:16.6]} 27. dxe5 {[%clk 0:00:36]} 27... fxe5 {[%clk
0:01:17.5]} 28. Bc5 {[%clk 0:00:31.2]} 28... f4 {[%clk 0:01:12.6]} 29. Qg5
{[%clk 0:00:23.6]} 29... Re8 {[%clk 0:00:50.8]} 30. Ne4 {[%clk 0:00:21.2]} 30...
Re6 {[%clk 0:00:36.7]} 31. Nc3 {[%clk 0:00:18.7]} 31... Rg6 {[%clk 0:00:33.6]}
32. Qh4 {[%clk 0:00:12.5]} 32... Rxg2+ {[%clk 0:00:32.6]} 33. Kf1 {[%clk
0:00:12.8]} 33... Rg6 {[%clk 0:00:29.2]} 34. Rd1 {[%clk 0:00:12]} 34... Bc4+
{[%clk 0:00:27.5]} 35. Ke1 {[%clk 0:00:11.5]} 35... Rg1# {[%clk 0:00:27]} 0-1

[Event "Early-Titled-Tuesday-Blitz-February-06-2024"]
[Site "Chess.com"]
[Date "2024.02.06"]
[Round "4"]
[White "baki83"]
[Black "Natalya_Buksa"]
[Result "0-1"]
[WhiteElo "2795"]
[BlackElo "2578"]
[TimeControl "180+1"]
[EndTime "8:39:19 PST"]
[Termination "Natalya_Buksa won on time"]

1. e4 {[%clk 0:02:59.6]} 1... c5 {[%clk 0:02:58.5]} 2. Nf3 {[%clk 0:02:59.6]}
2... Nc6 {[%clk 0:02:58.5]} 3. Bb5 {[%clk 0:02:58.4]} 3... Nf6 {[%clk
0:02:58.6]} 4. Nc3 {[%clk 0:02:57.8]} 4... Qc7 {[%clk 0:02:58.4]} 5. O-O {[%clk
0:02:54.3]} 5... Nd4 {[%clk 0:02:58.2]} 6. Re1 {[%clk 0:02:42.8]} 6... e5 {[%clk
0:02:51.7]} 7. Bc4 {[%clk 0:02:27.7]} 7... d6 {[%clk 0:02:50.5]} 8. Ng5 {[%clk
0:02:13.8]} 8... Ne6 {[%clk 0:02:50.3]} 9. d3 {[%clk 0:02:07.4]} 9... Be7 {[%clk
0:02:50.2]} 10. h3 {[%clk 0:01:27.3]} 10... O-O {[%clk 0:02:49.2]} 11. a4 {[%clk
0:01:27.3]} 11... h6 {[%clk 0:02:33.9]} 12. Nxe6 {[%clk 0:01:23.3]} 12... Bxe6
{[%clk 0:02:34.8]} 13. f4 {[%clk 0:01:23.4]} 13... Nd7 {[%clk 0:02:14]} 14. f5
{[%clk 0:01:02.9]} 14... Bxc4 {[%clk 0:02:13.9]} 15. dxc4 {[%clk 0:01:03.4]}
15... Bh4 {[%clk 0:01:42.2]} 16. Rf1 {[%clk 0:00:35.6]} 16... Qc6 {[%clk
0:01:42.6]} 17. Qg4 {[%clk 0:00:31.4]} 17... Bg5 {[%clk 0:01:09.5]} 18. Bxg5
{[%clk 0:00:29.5]} 18... hxg5 {[%clk 0:01:10.4]} 19. Qxg5 {[%clk 0:00:24.5]}
19... f6 {[%clk 0:01:10.4]} 20. Qg4 {[%clk 0:00:19.5]} 20... Rf7 {[%clk
0:01:09.2]} 21. Rf3 {[%clk 0:00:18.9]} 21... Nf8 {[%clk 0:01:08]} 22. Nd5 {[%clk
0:00:18.8]} 22... b6 {[%clk 0:00:51.3]} 23. Rg3 {[%clk 0:00:17.9]} 23... Nh7
{[%clk 0:00:51.3]} 24. Qh5 {[%clk 0:00:11.6]} 24... a6 {[%clk 0:00:47.8]} 25.
Rg4 {[%clk 0:00:11.4]} 25... Raa7 {[%clk 0:00:18.2]} 26. Rh4 {[%clk 0:00:06.8]}
26... g5 {[%clk 0:00:18.6]} 27. fxg6 {[%clk 0:00:06.7]} 27... Rg7 {[%clk
0:00:19.2]} 28. gxh7+ {[%clk 0:00:05.8]} 28... Kh8 {[%clk 0:00:19.8]} 29. Rg4
{[%clk 0:00:03.9]} 29... Rxh7 {[%clk 0:00:19.3]} 30. Qg6 {[%clk 0:00:01.7]}
30... Rag7 {[%clk 0:00:16.3]} 31. Qxf6 {[%clk 0:00:01.8]} 31... Qc8 {[%clk
0:00:16.4]} 0-1

[Event "Early-Titled-Tuesday-Blitz-February-06-2024"]
[Site "Chess.com"]
[Date "2024.02.06"]
[Round "4"]
[White "deepfear"]
[Black "tylityli"]
[Result "1-0"]
[WhiteElo "1973"]
[BlackElo "2235"]
[TimeControl "180+1"]
[EndTime "8:39:19 PST"]
[Termination "deepfear won on time"]

1. e4 {[%clk 0:02:59.2]} 1... e5 {[%clk 0:02:59.7]} 2. Nf3 {[%clk 0:02:58.5]}
2... Nc6 {[%clk 0:03:00.1]} 3. d4 {[%clk 0:02:57.6]} 3... exd4 {[%clk
0:02:59.9]} 4. Nxd4 {[%clk 0:02:58.5]} 4... Bb4+ {[%clk 0:02:59.6]} 5. Nc3
{[%clk 0:02:42.5]} 5... Nf6 {[%clk 0:02:57.5]} 6. f3 {[%clk 0:02:35]} 6... d5
{[%clk 0:02:55.7]} 7. Nxc6 {[%clk 0:02:28]} 7... bxc6 {[%clk 0:02:55.3]} 8. Bg5
{[%clk 0:02:20.3]} 8... O-O {[%clk 0:02:48.2]} 9. a3 {[%clk 0:02:02.5]} 9...
Bxc3+ {[%clk 0:02:39.9]} 10. bxc3 {[%clk 0:02:02.7]} 10... dxe4 {[%clk
0:02:39.7]} 11. Qxd8 {[%clk 0:01:43.1]} 11... Rxd8 {[%clk 0:02:39.1]} 12. Bxf6
{[%clk 0:01:41.7]} 12... gxf6 {[%clk 0:02:38.5]} 13. fxe4 {[%clk 0:01:36.4]}
13... Re8 {[%clk 0:02:38.5]} 14. Bd3 {[%clk 0:01:20.1]} 14... f5 {[%clk
0:02:37.4]} 15. e5 {[%clk 0:01:20.2]} 15... Rxe5+ {[%clk 0:02:36.2]} 16. Kf2
{[%clk 0:01:17.6]} 16... Be6 {[%clk 0:02:36.3]} 17. Rhb1 {[%clk 0:01:06.3]}
17... Bd5 {[%clk 0:02:20.5]} 18. Rb7 {[%clk 0:00:58.3]} 18... Be4 {[%clk
0:01:55.9]} 19. Rxc7 {[%clk 0:00:51.2]} 19... Rc5 {[%clk 0:01:50.5]} 20. c4
{[%clk 0:00:45]} 20... a5 {[%clk 0:01:48.7]} 21. Rb1 {[%clk 0:00:36.2]} 21...
Rd8 {[%clk 0:01:46.8]} 22. Rbb7 {[%clk 0:00:20.5]} 22... Bxd3 {[%clk 0:01:23.8]}
23. cxd3 {[%clk 0:00:21.4]} 23... Rxd3 {[%clk 0:01:23.3]} 24. Rxf7 {[%clk
0:00:21.7]} 24... Rxc4 {[%clk 0:01:23.2]} 25. Rg7+ {[%clk 0:00:21.6]} 25... Kh8
{[%clk 0:01:18.4]} 26. Rxh7+ {[%clk 0:00:21.7]} 26... Kg8 {[%clk 0:01:18.1]} 27.
Rbg7+ {[%clk 0:00:22.2]} 27... Kf8 {[%clk 0:01:17.8]} 28. Rf7+ {[%clk
0:00:19.5]} 28... Ke8 {[%clk 0:01:18]} 29. Re7+ {[%clk 0:00:19.3]} 29... Kd8
{[%clk 0:01:17.6]} 30. Ra7 {[%clk 0:00:15.4]} 30... Rc2+ {[%clk 0:00:20.5]} 31.
Ke1 {[%clk 0:00:15.1]} 31... Re3+ {[%clk 0:00:12.6]} 32. Kd1 {[%clk 0:00:15.1]}
32... Rb2 {[%clk 0:00:09.2]} 33. Ra8+ {[%clk 0:00:14.3]} 1-0